Cogmind - Beta 12 @@@ ROGUE MODE // 2023.11.18 @ 11:46:58 Player: DreamCore Result: Destroyed by G-50 Soldier with Heavy Laser Performance ------------- Evolutions (4) 2000 Regions Visited (11) 2200 Robots Destroyed (46) 230 Value Destroyed (1885) 1885 Prototype IDs (40) 800 Alien Tech Used (0) 0 Bonus (1793) 1793 TOTAL SCORE: 8908 Bonus ------- Follower Combat Kills 793 Entered Garrisons 200 Used RIF Installer 500 Aligned with FarCom 300 Cogmind --------- Core Integrity 0/850 Matter 290/300 Energy 100/100 System Corruption 0% Temperature Cool (18) Movement Core (350) Ox6 Location -6/Cetus Parts ------- > --- POWER (2) -------- (None) > --- PROPULSION (5) --- (None) > --- UTILITY (6) ------ Improved Heat Sink Large Storage Unit Improved Signal Interpreter Advanced Targeting Computer > --- WEAPON (2) ------- (None) > --- INVENTORY (15) --- Reinforced Deuterium Engine Advanced Heat Sink Advanced Heat Sink Advanced Weight Redist. System Advanced Sensor Array Cloaking Device Focal Shield System Guard Drone Bay (1/2) Improved Datajack Peak State ------------ > --- POWER ------------ Reinforced Deuterium Engine Light Angular Momentum Engine > --- PROPULSION ------- Wheeled Huge-FC Exoskeleton Flying Fortress v7 > --- UTILITY ---------- Scrap Engine Large Storage Unit Advanced Weight Redist. System Improved Signal Interpreter Relay Coupler [Grunt] > --- WEAPON ----------- Gatling Laser Cooled Particle Cannon > --- INVENTORY -------- Flexi-carbon Leg Flexi-carbon Leg Myomer Leg Improved Heat Sink Improved Heat Sink Advanced Heat Sink Advanced Heat Sink Advanced Sensor Array Focal Shield Relay Coupler [Hunter] Drone Bay Particle Gun Heavy Beamcaster Ion Cannon Improved Datajack [Rating: 87] Favorites ----------- Power Reinforced Deuterium Engine Engine Reinforced Deuterium Engine Power Core Constructs Propulsion Flying Fortress v7 Leg Aluminum Leg Wheel Constructs Flight Unit Flying Fortress v7 Utility Large Storage Unit Device Scrap Engine Storage Large Storage Unit Processor Improved Signal Interpreter Hackware Relay Coupler [Grunt] Protection Propulsion Shielding Weapon Field Laser Energy Gun Field Laser Energy Cannon Cooled Particle Cannon Ballistic Gun Assault Rifle Slashing Weapon Ripper Special Melee Weapon Improved Datajack Build | -11 -10 -10 -10 -9 -8 -8 -8 -8 -6 -6 -6 ------- Run | Jun Mat Min Exi Min Mat Sto Gar Rec Fac Ext Cet Slots Evolved 8 | . . . . . 4 . . . 4 . . Power 1 | . . . . . . . . . 1 . . Propulsion 3 | . . . . . 2 . . . 1 . . Utility 4 | . . . . . 2 . . . 2 . . Weapon . | . . . . . . . . . . . . Parts Attached 92 | 1 10 1 1 2 7 7 1 10 19 20 13 Power 11 | . 1 . . 1 . 2 . 3 1 1 2 Engine 7 | . 1 . . 1 . 1 . 1 1 1 1 Core 4 | . . . . . . 1 . 2 . . 1 Reactor . | . . . . . . . . . . . . Propulsion 13 | . 6 . . . 1 . . . 1 4 1 Treads . | . . . . . . . . . . . . Leg 7 | . 3 . . . . . . . . 3 1 Wheel . | . . . . . . . . . . . . Hover . | . . . . . . . . . . . . Flight 6 | . 3 . . . 1 . . . 1 1 . Utility 37 | . 1 . . . 2 3 1 3 14 7 6 Device 24 | . . . . . . 2 1 2 11 3 5 Storage 2 | . . . . . 1 . . . 1 . . Processor 4 | . 1 . . . . 1 . . . 1 1 Hackware 6 | . . . . . . . . 1 2 3 . Protection 1 | . . . . . 1 . . . . . . Artifact . | . . . . . . . . . . . . Weapon 31 | 1 2 1 1 1 4 2 . 4 3 8 4 Energy Gun 15 | . . . . . 4 2 . 2 2 3 2 Energy Cannon 7 | . . . . 1 . . . 1 1 2 2 Ballistic Gun 4 | 1 2 . 1 . . . . . . . . Ballistic Cannon . | . . . . . . . . . . . . Launcher . | . . . . . . . . . . . . Special Weapon . | . . . . . . . . . . . . Impact Weapon . | . . . . . . . . . . . . Slashing Weapon 1 | . . 1 . . . . . . . . . Piercing Weapon . | . . . . . . . . . . . . Special Melee Weapon 4 | . . . . . . . . 1 . 3 . Unidentified Prototypes 3 | . . . . . 1 . . . 2 . . Parts Lost 29 | . . . . . . . . 2 1 7 19 Power 8 | . . . . . . . . 2 . 2 4 Propulsion 8 | . . . . . . . . . . 3 5 Utility 5 | . . . . . . . . . . . 5 Weapon 8 | . . . . . . . . . 1 2 5 Highest Loss Streak 19 | . . . . . . . . 2 1 4 19 To Critical Strikes 1 | . . . . . . . . . . . 1 Average Slot Usage (%) 75 | . 95 100 99 99 72 72 72 60 69 71 57 Engine 8 | . 14 14 14 14 9 8 . 2 11 8 . Core 1 | . . . . . . . 9 4 . 2 5 Leg 9 | . 27 28 28 28 . . . . . 9 1 Flight 5 | . . . . . 9 9 9 9 13 2 . Device 8 | . . . . . . 7 9 9 18 13 14 Storage 9 | . 14 14 14 14 18 10 9 9 6 6 6 Processor 8 | . 9 14 14 14 9 9 9 9 6 6 12 Hackware 1 | . . . . . . . . . . 5 . Protection 2 | . . . . . 9 9 9 . . . . Energy Gun 7 | . 6 . . . 5 18 18 15 6 2 3 Energy Cannon 3 | . . . . 3 6 . . . 5 7 3 Ballistic Gun 5 | . 21 25 19 24 6 . . . . . . Naked Turns . | . . . . . . . . . . . . Heaviest Build 62 | 12 12 13 13 17 40 39 33 37 59 62 50 Greatest Support 73 | 20 20 20 20 20 50 50 50 50 63 73 37 Greatest Overweight (x) 10 | . . . . . . . . . . 1 10 Average Overweight (x) . | . . . . . . . . . . . 1 Largest Inventory Capacity 15 | 8 8 8 8 8 15 15 15 15 15 15 15 Average Capacity 13 | 8 8 8 8 8 14 15 15 15 15 15 15 Most Carried 15 | 6 8 8 8 8 11 15 15 15 15 15 15 Average Carried 12 | 6 7 7 7 7 6 13 14 14 12 14 12 Final Capacity 15 | 8 8 8 8 8 15 15 15 15 15 15 15 Final Carried 15 | 6 8 8 8 8 11 15 15 15 13 15 10 Scrap Engine Consumption 67 | . . . . . . . . . 4 59 4 Constructs Created 6 | . . . . . . . . . . 5 1 Constructs Modified 20 | . . . . . . . . . . 15 5 Class Distribution -------------------- 54% | Mutant 26% | Scavenger-Mutant 8% | Construct 7% | Commander-Mutant Dominant Class ---------------- Mutant | -10/Materials Mutant | -10/Mines Mutant | -10/Exiles Mutant | -9/Mines Mutant | -8/Materials Mutant | -8/Storage Commander-Mutant | -8/Garrison Mutant | -8/Recycling Scavenger-Mutant | -6/Factory Scavenger-Mutant | -6/Extension Construct | -6/Cetus Resources | -11 -10 -10 -10 -9 -8 -8 -8 -8 -6 -6 -6 ----------- Run | Jun Mat Min Exi Min Mat Sto Gar Rec Fac Ext Cet Matter Collected 1200 | 210 188 . . 32 34 131 10 187 195 173 40 Remotely . | . . . . . . . . . . . . Salvage Created 2291 | . 275 . . . 34 399 . 528 335 533 187 Parts 88 | . 12 . . . 1 19 . 16 9 22 9 Haulers Intercepted 6 | . 1 . . . . 4 . . 1 . . Recyclers Shooed 3 | . 2 . . . . . . . . 1 . Parts Field Recycled . | . . . . . . . . . . . . Retrieved Matter . | . . . . . . . . . . . . Parts Self-Destructed . | . . . . . . . . . . . . Prevented . | . . . . . . . . . . . . Kills | -11 -10 -10 -10 -9 -8 -8 -8 -8 -6 -6 -6 ------- Run | Jun Mat Min Exi Min Mat Sto Gar Rec Fac Ext Cet Combat Hostiles Destroyed 33 | . 5 . . . 1 4 . 7 4 9 3 Guns 20 | . 5 . . . 1 4 . 7 1 1 1 Cannons 12 | . . . . . . . . . 3 8 1 Classes Destroyed 12 | . 5 . . . . 1 . 3 1 1 1 Hauler 6 | . 1 . . . . 4 . . 1 . . Recycler 4 | . 1 . . . . . . 3 . . . Operator 1 | . . . . . . . . . . 1 . Watcher 2 | . 1 . . . . . . . . 1 . Swarmer 4 | . 3 . . . . . . . . 1 . Grunt 11 | . 2 . . . 1 . . 1 1 6 . Brawler 1 | . . . . . . . . . 1 . . Duelist 1 | . . . . . . . . 1 . . . Protector 1 | . . . . . . . . 1 . . . Sentry 10 | . . . . . . 4 . 2 2 2 . Hunter 1 | . . . . . . . . . . . 1 Programmer 3 | . . . . . . . . 2 . . 1 Cetus Guard 1 | . . . . . . . . . . . 1 Best Kill Streak 4 | . 4 . . . 1 2 . 4 2 3 1 Combat Bots Only 3 | . 3 . . . 1 1 . 3 2 3 1 Max Kills in Single Turn 1 | . 1 . . . 1 1 . 1 1 1 1 Gunslinging . | . . . . . . . . . . . . Exploded . | . . . . . . . . . . . . Melee . | . . . . . . . . . . . . Uniques/NPCs Destroyed . | . . . . . . . . . . . . Combat | -11 -10 -10 -10 -9 -8 -8 -8 -8 -6 -6 -6 -------- Run | Jun Mat Min Exi Min Mat Sto Gar Rec Fac Ext Cet Damage Taken 6711 | . 274 . . 13 61 199 23 880 376 1346 3539 Core 1149 | . 74 . . . . 41 . 168 56 157 653 Absorbed by Shields . | . . . . . . . . . . . . Redirected to Shielding 35 | . . . . . 10 24 1 . . . . Regen/Repaired (Parts) 421 | . . . . . . . . . . 267 154 Core Remaining (%) 77 | 100 . . . 70 . . . 62 . . . Volleys Fired 173 | . 28 . . . 6 27 1 26 24 39 22 Largest 2 | . 2 . . . 2 2 2 2 2 2 2 Hottest 143 | . 70 . . . 143 128 128 143 123 111 134 Shots Fired 318 | . 56 . . . 12 55 2 46 40 73 34 Gun 249 | . 56 . . . 12 55 2 46 24 32 22 Cannon 69 | . . . . . . . . . 16 41 12 Launcher . | . . . . . . . . . . . . Special . | . . . . . . . . . . . . Kinetic 54 | . 54 . . . . . . . . . . Thermal 249 | . 2 . . . 12 55 2 34 40 73 31 Explosive . | . . . . . . . . . . . . Electromagnetic 15 | . . . . . . . . 12 . . 3 Robot Hit Streak 30 | . 9 . . . 3 30 . 9 11 15 8 Robot Miss Streak 6 | . 2 . . . 2 1 . 3 4 6 2 Penetration Max . | . . . . . . . . . . . . Secondary Targets 2 | . 1 . . . . . . 1 . . . Max Gunslinging Chain 1 | . 1 . . . . . . 1 . . . Shots Hit Robots 256 | . 34 . . . 8 32 . 39 32 80 31 Core Hits 98 | . 13 . . . 5 12 . 17 14 21 16 Critical Kills . | . . . . . . . . . . . . Critical Parts Destroyed . | . . . . . . . . . . . . Critical Strikes 11 | . . . . . 1 3 . 1 . 4 2 Burn 11 | . . . . . 1 3 . 1 . 4 2 Melee Attacks 34 | . . . . . . . . 1 . 33 . Impact . | . . . . . . . . . . . . Slashing . | . . . . . . . . . . . . Piercing . | . . . . . . . . . . . . Sneak Attacks 31 | . . . . . . . . 1 . 30 . Combat Hostiles 1 | . . . . . . . . 1 . . . Follow-up Attacks . | . . . . . . . . . . . . Damage Inflicted 4370 | . 374 . . 2 157 491 . 731 621 1261 733 Guns 2975 | . 374 . . . 157 491 . 731 350 441 431 Cannons 1325 | . . . . . . . . . 271 752 302 Explosions . | . . . . . . . . . . . . Melee . | . . . . . . . . . . . . Ramming 70 | . . . . 2 . . . . . 68 . Kinetic 361 | . 361 . . . . . . . . . . Thermal 3676 | . 13 . . . 157 491 . 513 621 1193 688 Explosive . | . . . . . . . . . . . . Electromagnetic 263 | . . . . . . . . 218 . . 45 Impact . | . . . . . . . . . . . . Slashing . | . . . . . . . . . . . . Piercing . | . . . . . . . . . . . . Highest Corruption 10 | . . . . . . 1 1 10 . . . Average Corruption 2 | . . . . . . 1 1 6 . . . Corruption Purged . | . . . . . . . . . . . . Corruption Blocked . | . . . . . . . . . . . . Effects 22 | . . . . . . 8 2 12 . . . Message Errors 6 | . . . . . . 3 1 2 . . . Matter Fused 4 | . . . . . . . 1 3 . . . Heat Flow Errors 3 | . . . . . . 1 . 2 . . . Energy Discharges 3 | . . . . . . 2 . 1 . . . Data Loss (minor) 2 | . . . . . . 1 . 1 . . . Data Loss (major) 1 | . . . . . . . . 1 . . . Misfires 1 | . . . . . . 1 . . . . . Weapon Failures 2 | . . . . . . . . 2 . . . Overload Shots . | . . . . . . . . . . . . Overflow Damage 2 | . . . . . . . . . . 2 . Projectiles . | . . . . . . . . . . . . Explosions . | . . . . . . . . . . . . Melee 2 | . . . . . . . . . . 2 . Knockbacks 1 | . . . . . . . . . . 1 . Impact 1 | . . . . . . . . . . 1 . Kinetic . | . . . . . . . . . . . . Secondary . | . . . . . . . . . . . . Self-Inflicted Damage . | . . . . . . . . . . . . Shots . | . . . . . . . . . . . . Rammed . | . . . . . . . . . . . . Targets Rammed 4 | . . . . 1 . . . . . 3 . Kicked 4 | . . . . 1 . . . . . 3 . Crushed . | . . . . . . . . . . . . Highest Temperature 551 | . 18 . . . 499 331 46 551 309 404 120 Average Temperature 147 | . 8 . . . 274 99 28 222 117 128 41 Received Heat Transfer 1563 | . 105 . . . 36 81 9 171 117 441 603 Effects 26 | . . . . . 6 1 . 18 . 1 . Shutdowns 3 | . . . . . . . . 2 . 1 . Energy Bleed 4 | . . . . . . 1 . 3 . . . Interference 6 | . . . . . . . . 6 . . . Matter Decay 2 | . . . . . . . . 2 . . . Short Circuit 2 | . . . . . 1 . . 1 . . . Damage (minor) 1 | . . . . . 1 . . . . . . Damage (major) 8 | . . . . . 4 . . 4 . . . Siege Activations . | . . . . . . . . . . . . Robots Corrupted . | . . . . . . . . . . . . Combat Hostiles . | . . . . . . . . . . . . Parts Fried 1 | . . . . . . . . 1 . . . Impact Corruptions 1 | . . . . . . . . . . 1 . Robots Melted 1 | . . . . . . . . . . . 1 Combat Hostiles 1 | . . . . . . . . . . . 1 Parts Melted 23 | . 1 . . . 1 4 . . 3 5 9 Heat Transferred 7988 | . 37 . . . 435 1332 . 1132 1187 2109 1756 Parts Sabotaged . | . . . . . . . . . . . . Parts Stolen . | . . . . . . . . . . . . Parts Stripped . | . . . . . . . . . . . . Power Chain Reactions . | . . . . . . . . . . . . Missiles Intercepted . | . . . . . . . . . . . . Alert | -11 -10 -10 -10 -9 -8 -8 -8 -8 -6 -6 -6 ------- Run | Jun Mat Min Exi Min Mat Sto Gar Rec Fac Ext Cet Peak Influence 446 | . 189 2 . 15 69 295 446 393 176 245 180 Initial 191 | . . 2 . . . 28 191 174 132 45 97 Average 108 | . 48 2 . 1 28 90 306 252 118 111 87 Maximum Alert Level 2 | . . . . . . 1 2 1 . 1 . Low Security (%) 86 | 100 100 100 . 100 100 88 10 47 100 91 100 Level 1 12 | . . . . . . 11 74 52 . 8 . Level 2 . | . . . . . . . 15 . . . . Level 3 . | . . . . . . . . . . . . Level 4 . | . . . . . . . . . . . . Level 5 . | . . . . . . . . . . . . High Security . | . . . . . . . . . . . . Max Security . | . . . . . . . . . . . . Squads Dispatched 9 | . . . . . . 3 . . 2 4 . Investigation 2 | . . . . . . 1 . . . 1 . Extermination 1 | . . . . . . . . . 1 . . Reinforcement 5 | . . . . . . 1 . . 1 3 . Assault . | . . . . . . . . . . . . Garrison 1 | . . . . . . 1 . . . . . Intercept . | . . . . . . . . . . . . Searches Triggered . | . . . . . . . . . . . . Construction Impeded 2 | . . . . . . . . . . 2 . Haulers Reinforced 1 | . . . . . . . . . 1 . . Active Scanning Responses . | . . . . . . . . . . . . Cargo Convoy Interrupts . | . . . . . . . . . . . . Stealth | -11 -10 -10 -10 -9 -8 -8 -8 -8 -6 -6 -6 --------- Run | Jun Mat Min Exi Min Mat Sto Gar Rec Fac Ext Cet Distress Signals 9 | . 1 . . . 1 1 . . . 4 2 Communications Jammed . | . . . . . . . . . . . . Distress Signals . | . . . . . . . . . . . . Times Spotted 99 | . 8 . . 2 5 13 7 14 5 32 13 Peak Tracking Total 8 | . 3 . . 2 5 4 4 8 3 8 6 Tactical Retreats 11 | . . . . . 1 2 . 3 . 4 1 Traps | -11 -10 -10 -10 -9 -8 -8 -8 -8 -6 -6 -6 ------- Run | Jun Mat Min Exi Min Mat Sto Gar Rec Fac Ext Cet Traps Triggered 5 | . . . . . . 1 1 . 1 2 . Indirectly . | . . . . . . . . . . . . Trap Hack Attempts 2 | . . . . . . . . . . 2 . Triggered . | . . . . . . . . . . . . Disarmed . | . . . . . . . . . . . . Reprogrammed 2 | . . . . . . . . . . 2 . Reused . | . . . . . . . . . . . . Traps Extracted . | . . . . . . . . . . . . Installed . | . . . . . . . . . . . . Triggered . | . . . . . . . . . . . . Exploded 1 | . . . 1 . . . . . . . . Machines | -11 -10 -10 -10 -9 -8 -8 -8 -8 -6 -6 -6 ---------- Run | Jun Mat Min Exi Min Mat Sto Gar Rec Fac Ext Cet Machines Disabled 3 | . . . . . . 2 1 . . . . Max in Single Turn 1 | . . . . . . 1 1 . . . . Garrison Relay 1 | . . . . . . . 1 . . . . Machines Repaired . | . . . . . . . . . . . . Machines Sabotaged . | . . . . . . . . . . . . Overloaded Fab Kills . | . . . . . . . . . . . . Hacking | -11 -10 -10 -10 -9 -8 -8 -8 -8 -6 -6 -6 --------- Run | Jun Mat Min Exi Min Mat Sto Gar Rec Fac Ext Cet Machines Accessed 43 | . 7 . 1 . 1 6 2 11 3 12 . Terminals 30 | . 6 . . . 1 4 2 6 1 10 . Fabricators 1 | . . . . . . . . . 1 . . Repair Stations 1 | . . . . . . . . . . 1 . Recycling Units 8 | . 1 . . . . 1 . 5 . 1 . Scanalyzers 1 | . . . . . . . . . 1 . . Garrison Access 1 | . . . . . . 1 . . . . . Total Hacks 101 | . 17 . 1 . 3 14 4 30 5 27 . Successful 59 | . 7 . 1 . 1 12 2 13 5 18 . Failed 42 | . 10 . . . 2 2 2 17 . 9 . Catastrophic 8 | . 3 . . . . . . 2 . 3 . Database Lockouts . | . . . . . . . . . . . . Manual 2 | . . . 1 . . 1 . . . . . Terminals 76 | . 16 . . . 3 12 4 19 1 21 . Fabricators 2 | . . . . . . . . . 2 . . Repair Stations 3 | . . . . . . . . . . 3 . Recycling Units 16 | . 1 . . . . 1 . 11 . 3 . Scanalyzers 2 | . . . . . . . . . 2 . . Garrison Access 1 | . . . . . . 1 . . . . . Terminal Hacks 41 | . 7 . 1 . 1 10 2 6 1 13 . Record 7 | . . . . . . 2 . 1 . 4 . Part Schematic 1 | . . . . . . . . 1 . . . Robot Schematic 1 | . . . . . . . . 1 . . . Robot Analysis 1 | . . . . . . 1 . . . . . Prototype ID Bank 7 | . 3 . . . . 2 . 1 . 1 . Open Door 5 | . . . . . . 1 . . 1 3 . Emergency Access Points 2 | . 1 . . . . . 1 . . . . Locate Traps 3 | . . . . . 1 1 . . . 1 . Reprogram Traps 1 | . . . . . . . . . . 1 . Dispatch Records 4 | . . . . . . 2 . 1 . 1 . Security Status 1 | . 1 . . . . . . . . . . Recall Investigation 1 | . . . . . . . . . . 1 . Hauler Manifests 1 | . . . . . . . . 1 . . . Registered Components 1 | . 1 . . . . . . . . . . Zone Layout 3 | . 1 . . . . 1 . . . 1 . Patrol Navigation 1 | . . . . . . . 1 . . . . EX-Prototype ID Bank 1 | . . . 1 . . . . . . . . Fabricator Hacks 2 | . . . . . . . . . 2 . . Load Schematic 1 | . . . . . . . . . 1 . . Build 1 | . . . . . . . . . 1 . . Repair Station Hacks 3 | . . . . . . . . . . 3 . Scan Component 2 | . . . . . . . . . . 2 . Repair 1 | . . . . . . . . . . 1 . Recycling Unit Hacks 10 | . . . . . . 1 . 7 . 2 . Report Inventory 7 | . . . . . . 1 . 5 . 1 . Retrieve Components 3 | . . . . . . . . 2 . 1 . Scanalyzer 2 | . . . . . . . . . 2 . . Insert Component 1 | . . . . . . . . . 1 . . Analyze 1 | . . . . . . . . . 1 . . Garrison Access Hacks 1 | . . . . . . 1 . . . . . Unlock Access 1 | . . . . . . 1 . . . . . Unauthorized Hacks . | . . . . . . . . . . . . Terminals . | . . . . . . . . . . . . Fabricators . | . . . . . . . . . . . . Repair Stations . | . . . . . . . . . . . . Recycling Units . | . . . . . . . . . . . . Scanalyzers . | . . . . . . . . . . . . Garrison Access . | . . . . . . . . . . . . Data Cores Recovered 1 | . . . . . . 1 . . . . . Used . | . . . . . . . . . . . . Hacking Detections 29 | . 5 . . . 1 2 2 7 1 11 . Full Trace Events 3 | . . . . . . 1 . 1 . 1 . Feedback Events 1 | . . . . . . 1 . . . . . Corruption 1 | . . . . . . 1 . . . . . Feedback Blocked . | . . . . . . . . . . . . Robot Schematics Acquired 1 | . . . . . . . . 1 . . . Robots Built 3 | . . . . . . . . . 3 . . Authchips 1 | . . . . . . . . . 1 . . Time 49 | . . . . . . . . . 49 . . Total Robot Build Rating 6 | . . . . . . . . . 6 . . Part Schematics Acquired 2 | . . . . . . . . 1 1 . . Parts Built . | . . . . . . . . . . . . Authchips . | . . . . . . . . . . . . Time . | . . . . . . . . . . . . Total Part Build Rating . | . . . . . . . . . . . . Parts Repaired 1 | . . . . . . . . . . 1 . Time 62 | . . . . . . . . . . 62 . Parts Recycled . | . . . . . . . . . . . . Recycled Matter . | . . . . . . . . . . . . Retrieved Matter . | . . . . . . . . . . . . Retrieved Components 7 | . . . . . . . . 5 . 2 . Parts Scanalyzed 1 | . . . . . . . . . 1 . . Part Schematics Acquired 1 | . . . . . . . . . 1 . . Parts Damaged . | . . . . . . . . . . . . Bothacking | -11 -10 -10 -10 -9 -8 -8 -8 -8 -6 -6 -6 ------------ Run | Jun Mat Min Exi Min Mat Sto Gar Rec Fac Ext Cet Used RIF Installer 1 | . . . . . . . 1 . . . . Robots Hacked 5 | . . . . . . . . . . 5 . Non-combat 3 | . . . . . . . . . . 3 . Combat 2 | . . . . . . . . . . 2 . Robot Hacks Applied 6 | . . . . . . . . . . 6 . parse_system 1 | . . . . . . . . . . 1 . ignore_repairs 1 | . . . . . . . . . . 1 . ignore_parts 2 | . . . . . . . . . . 2 . formatsys_high 2 | . . . . . . . . . . 2 . Relay Couplers Released 5 | . . . . . . . 5 . . . . Machine Destruction 5 | . . . . . . . 5 . . . . Attached 3 | . . . . . . . . . 1 2 . Fabnet Peak Effective % . | . . . . . . . . . . . . Robots Rewired 10 | . . . . . . . . . . 10 . Allies Hacked . | . . . . . . . . . . . . Hacks Repelled . | . . . . . . . . . . . . Allies | -11 -10 -10 -10 -9 -8 -8 -8 -8 -6 -6 -6 -------- Run | Jun Mat Min Exi Min Mat Sto Gar Rec Fac Ext Cet Total Allies 29 | . . . . . . 10 . . 3 16 . Largest Group 10 | . . . . . . 10 5 . 3 5 2 Highest-Rated Group 173 | . . . . . . 173 92 . 54 151 70 Highest-Rated Ally 41 | . . . . . . 29 29 . 18 41 41 Total Orders 14 | . . . . . . . . . 12 . 2 STAY 1 | . . . . . . . . . 1 . . ROAM 5 | . . . . . . . . . 4 . 1 EXPLORE 3 | . . . . . . . . . 3 . . RETURN 5 | . . . . . . . . . 4 . 1 Ally Attacks 203 | . . . . . . 37 37 . 13 98 18 Total Damage 3790 | . . . . . . 516 486 . 427 2009 352 Kills 33 | . . . . . . 6 8 . 2 16 1 Allies Corrupted . | . . . . . . . . . . . . Allies Melted 1 | . . . . . . . . . 1 . . Intel | -11 -10 -10 -10 -9 -8 -8 -8 -8 -6 -6 -6 ------- Run | Jun Mat Min Exi Min Mat Sto Gar Rec Fac Ext Cet Robot Analysis Total 1 | . . . . . . 1 . . . . . Derelict Logs Recovered 1 | . . . . 1 . . . . . . . Drone Launches 9 | . . . . . . . . . 7 . 2 Drone Recoveries 8 | . . . . . . . . . 7 . 1 Exploration | -11 -10 -10 -10 -9 -8 -8 -8 -8 -6 -6 -6 ------------- Run | Jun Mat Min Exi Min Mat Sto Gar Rec Fac Ext Cet Turns Passed 5524 | 2 453 45 363 428 231 959 215 451 561 1528 288 Spaces Moved 4596 | 1 286 36 298 301 334 686 328 663 480 1122 61 Core 4 | . . . . . . . . . . . 4 Treads . | . . . . . . . . . . . . Legs 1293 | 1 286 36 298 301 . . . . . 366 5 Wheels 158 | . . . . . . . . . . 106 52 Hover . | . . . . . . . . . . . . Flight 3141 | . . . . . 334 686 328 663 480 650 . Fastest Speed 39 | 120 120 120 120 120 50 50 50 50 39 39 190 Average Speed 77 | 120 120 120 120 120 50 50 50 50 39 98 239 Slowest Speed 550 | 120 120 120 120 120 50 50 50 50 39 205 550 Overloaded Moves . | . . . . . . . . . . . . Propulsion Burnouts . | . . . . . . . . . . . . Robots Hopped 43 | . . . . . 7 16 . 9 2 9 . Cave-ins Triggered . | . . . . . . . . . . . . Exploration Rate (%) 45 | 2 54 9 63 62 22 65 36 90 10 86 41 Regions Visited 11 Branch Regions 7 Pre-discovered Areas 1 | . . . . 1 . . . . . . . Known Exits Taken 9 | . 1 1 1 1 1 1 . 1 1 1 . Unknown Exits Taken 1 | 1 . . . . . . . . . . . Scrap Searched 1 | . . . . 1 . . . . . . . Spaces Dug . | . . . . . . . . . . . . Terrain Destroyed 5 | . . . . . . . . . 2 3 . Melee . | . . . . . . . . . . . . Projectile 5 | . . . . . . . . . 2 3 . AOE . | . . . . . . . . . . . . Terrain Rammed . | . . . . . . . . . . . . Walls Destroyed . | . . . . . . . . . . . . Machines Disabled . | . . . . . . . . . . . . Actions | -11 -10 -10 -10 -9 -8 -8 -8 -8 -6 -6 -6 --------- Run | Jun Mat Min Exi Min Mat Sto Gar Rec Fac Ext Cet Total 6213 | 1 345 38 306 368 379 1235 378 725 810 1460 168 Wait 1204 | . 8 . . 61 27 512 35 21 275 197 68 Move 4508 | . 285 35 297 300 322 655 326 645 475 1107 61 Hop 33 | . . . . . 4 14 . 8 2 5 . Pick Up 55 | . 7 1 2 1 7 9 5 4 4 15 . Fast Attach 18 | . 1 . 1 1 2 1 . 4 4 . 4 Attach 37 | . 1 . . . 5 2 . 4 9 9 7 Detach 27 | . . . . . 4 2 . 4 6 8 3 Swap 37 | 1 8 1 . 1 . 4 1 2 6 11 2 Drop 56 | . 7 1 6 3 2 9 6 6 5 10 1 Fire 173 | . 28 . . . 6 27 1 26 24 39 22 Melee 34 | . . . . . . . . 1 . 33 . Ram . | . . . . . . . . . . . . Kick 4 | . . . . 1 . . . . . 3 . Crush . | . . . . . . . . . . . . Escape Stasis 24 | . . . . . . . 4 . . 20 . Rewire 1 | . . . . . . . . . . 1 . Trap 2 | . . . . . . . . . . 2 . Miscellaneous . | . . . . . . . . . . . . Route ------- -11/Junkyard -10/Materials (discovered 3 exits: [*Mat x2] / *Min) -10/Mines -10/Exiles -9/Mines -8/Materials -8/Storage -8/Garrison -8/Recycling -6/Factory -6/Extension (discovered 2 exits: *Fac / *Cet) -6/Cetus History --------- Turn | Location | Event 3 | -11/Junkyard | Discovered new exit (range 0) 3 | -11/Junkyard | Entered Materials 89 | -10/Materials | Discovered new exit (range 6) 313 | -10/Materials | Build established: Mutant 379 | -10/Materials | Discovered new exit (range 20) 427 | -10/Materials | Discovered new exit (range 7) 455 | -10/Materials | Identified exit to Mines 456 | -10/Materials | Entered Mines 472 | -10/Mines | A weapon hastily lodged in a ceiling crevice suddenly fell to the ground 495 | -10/Mines | Deemed a non-threat by the Exiles lab entrance 497 | -10/Mines | Discovered new exit (range 5) 500 | -10/Mines | Identified exit to Exiles 501 | -10/Mines | Entered Exiles 530 | -10/Exiles | Met 8R-AWN 551 | -10/Exiles | Met EX-HEX 589 | -10/Exiles | Met EX-BIN 662 | -10/Exiles | Aligned with FarCom system 663 | -10/Exiles | Given EX-Vault access code 696 | -10/Exiles | Opened EX-Vault 710 | -10/Exiles | Found Flying Fortress v7 749 | -10/Exiles | Warned to stay clear of 0b10 Research branches 750 | -10/Exiles | Exiles lab attacked by MAIN.C 855 | -10/Exiles | Discovered new exit (range 10) 863 | -10/Exiles | Identified exit to Mines 864 | -10/Exiles | Left Exiles lab with Flying Fortress v7 864 | -10/Exiles | Entered Mines 925 | -9/Mines | Learned location of Storage (-8) 1073 | -9/Mines | Learned Materials non-interactive machine intel 1076 | -9/Mines | Discovered new exit (range 15) 1224 | -9/Mines | Joined a pair of Derelicts in attacking an 0b10 outpost 1290 | -9/Mines | Identified exit to Materials 1292 | -9/Mines | Entered Materials 1292 | -8/Materials | Evolved 4 slots: Propulsion x2, Utility x2 1293 | -8/Materials | Loaded intel: 20 non-interactive machine locations 1520 | -8/Materials | Discovered new exit (range 7) 1523 | -8/Materials | Identified exit to Storage 1523 | -8/Materials | Entered Storage 2248 | -8/Storage | Assisted by bots powering up and referring to "LRC-V3" 2403 | -8/Storage | Garrison activated, responded to threat 2482 | -8/Storage | Identified exit to Garrison 2482 | -8/Storage | Entered Garrison 2482 | -8/Garrison | Accompanied by 5 allies 2494 | -8/Garrison | Triggered checkpoint 2504 | -8/Garrison | Garrison Relay disabled 2519 | -8/Garrison | Installed Relay Interface Framework 2545 | -8/Garrison | Build established: Commander-Mutant 2628 | -8/Garrison | Triggered checkpoint 2668 | -8/Garrison | Triggered checkpoint 2691 | -8/Garrison | Discovered new exit (range 12) 2696 | -8/Garrison | Identified exit to Recycling 2697 | -8/Garrison | Entered Recycling 2701 | -8/Recycling | Found Scrap Engine 2921 | -8/Recycling | System corruption reached 10% 2968 | -8/Recycling | Build established: Mutant 3034 | -8/Recycling | Discovered new exit (range 16) 3148 | -8/Recycling | Identified exit to Factory 3148 | -8/Recycling | Entered Factory 3148 | -6/Factory | Evolved 4 slots: Power x1, Propulsion x1, Utility x2 3245 | -6/Factory | Fabricated L-31 Rogue? 3707 | -6/Factory | Build established: Scavenger-Mutant 3707 | -6/Factory | Discovered new exit (range 5) 3708 | -6/Factory | Identified exit to Extension 3709 | -6/Factory | Entered Extension 3850 | -6/Extension | Rescued a captive Derelict 3860 | -6/Extension | Rescued a captive Derelict 4180 | -6/Extension | Repaired Myomer Leg 4196 | -6/Extension | Spotted B-75 Beast 4308 | -6/Extension | Spotted B-75 Beast 4351 | -6/Extension | Lost 4 parts (1p2n1w) 4405 | -6/Extension | Rescued a captive Derelict 4406 | -6/Extension | Rescued a captive Derelict 5142 | -6/Extension | Discovered new exit (range 10) 5145 | -6/Extension | Discovered new exit (range 6) 5204 | -6/Extension | Identified exit to Factory 5222 | -6/Extension | Identified exit to Cetus 5233 | -6/Extension | Build established: Construct 5237 | -6/Extension | Entered Cetus 5237 | -6/Cetus | Accompanied by 2 allies 5250 | -6/Cetus | Spotted Cetus Guard 5251 | -6/Cetus | Spotted Cetus Guard 5354 | -6/Cetus | Spotted Cetus Guard 5360 | -6/Cetus | Spotted Cetus Guard 5385 | -6/Cetus | Destroyed Cetus Guard 5416 | -6/Cetus | Core integrity fell below 50% 5499 | -6/Cetus | Cetus Manufacturing Module disabled 5517 | -6/Cetus | Core integrity fell below 20% 5525 | -6/Cetus | Destroyed by G-50 Soldier with Heavy Laser Last Messages --------------- 05471_ Machine disabled. 05476_ Penetrated by Slug. 05478_ Slug penetrates Cetus Manufacturing Module. 05485_ Wheeled Huge-FC Exoskeleton destroyed. 05485_ Wheeled Huge-FC Exoskeleton core remains intact and functional. 05489_ Penetrated by Slug. 05499_ Cetus Manufacturing Module disabled. 05502_ Slug penetrates Cetus Guard. 05502_ Cetus Guard suffers critical hit (Destroy). 05502_ Cetus Guard destroyed. 05510_ Penetrated by Slug. 05510_ Wheeled Huge-FC Exoskeleton destroyed. 05515_ Penetrated by Slug. 05516_ C-30 ARC bursts open, deploying its payload. 05516_ G-67 Veteran unfolds itself. 05516_ G-50 Soldier unfolds itself. 05519_ Imp. Sensor Array destroyed. 05522_ Mic. Nuclear Core destroyed. 05522_ Penetrated by Slug. 05522_ Imp. Heat Sink destroyed. Map ----- +----------------------------------------------------+ | ?????????????????????????????????????????????????? | | ?????????????????????????????????????????????????? | | ?????????????????????????????????????????????????? | | ?????????????????????????????????????????????????? | | ?????????????????????????????????????????????????? | | ?????????????????????????????????????????????????? | | ?????????????????????????????????????????????????? | | ?????????????????????????????????????????????????? | | ?????????????????????????????????????????????????? | | ?????????????????????????????????????????????????? | | ?????????????????????????????????????????????????? | | ?????????????????????????????????????????????????? | | ?????????????????????????????????????????????????? | | ?????????????????????????????????????????????????? | | ?????????????????????????????????????????????????? | | ?????????????????????????????????????????????????? | | ?????????????????????????????????????????????????? | | ????????" """ "????##????????????????????????????? | | ???? " """"""" " #""???????????????????????????? | | ???#"""""""""""""""#"######??????????????????????? | | ???#""""" """ """""#""""""#??????????????????????? | | ???#""""""" """""""#" ""#??????????????????????? | | ???#""" " " """#T ""#??????????????????????? | | ##?#" """ """ #" ""#??????????????????????? | | ### * ########???????????????? | | " Y =%! @/ g ????????? | | + ! / g ????????? | | " / g g ????????? | | ###" ##############?????????? | | ##?#" "" """"""#T #??????????????????????? | | ???######++############"""#??????????????????????? | | #????????????????????????????????????????????????? | | ?????????????????????????????????????????????????? | | ?????????????????????????????????????????????????? | | ?????????????????????????????????????????????????? | | ?????????????????????????????????????????????????? | | ?????????????????????????????????????????????????? | | ?????????????????????????????????????????????????? | | ?????????????????????????????????????????????????? | | ?????????????????????????????????????????????????? | | ?????????????????????????????????????????????????? | | ?????????????????????????????????????????????????? | | ?????????????????????????????????????????????????? | | ?????????????????????????????????????????????????? | | ?????????????????????????????????????????????????? | | ?????????????????????????????????????????????????? | | ?????????????????????????????????????????????????? | | ?????????????????????????????????????????????????? | | ?????????????????????????????????????????????????? | | ?????????????????????????????????????????????????? | +----------------------------------------------------+ Best States ------------- Heat Dissipation 84 Energy Generation 31 Energy Capacity 482 Matter Stores 300 Matter Capacity 300 Sight Range 16 Robot Scan Range 15 Terrain Scan Density 10 ECM Strength 1 Additional Mass Support 9 Resistance: KI 20 Propulsion Shielding 33 Evasion (%) 62 Targeting Accuracy 8 Offensive Hacking 10 Relay Coupler Types 2 Relay Coupler Value 26 Authchip Count 2 Item Schematics ----------------- Adv. Visual Processing Unit | -8/Recycling | Hacked Drone Bay | -6/Factory | Scanalyzed Robot Schematics ------------------ L-31 Rogue | -8/Recycling | Hacked Fabricated ------------ L-31 Rogue | x3 | -6/Factory | Authchip Alien Tech Used ----------------- None Achievements -------------- GoHome() Hehehe I Spy My Command Is Your Wish Challenges ------------ None Game ------ Seed CannonLinkedSplitter Manual? 0 Play Time 01:39:47 Cumulative 19.5 hours Start 2023.11.18 @ 09:43:31 End 2023.11.18 @ 11:46:58 Sessions 1 Manual Loads 0 Difficulty Rogue Special Mode None Game No. 26 Rogue 26 Adventurer 0 Explorer 0 Win Type - Total 0 Types 0/0/0/0/0/0/0/0/0 Lore% 21 Gallery% 21 Achievement% 20 Wizard Run 0 Options --------- ASCII 0 Keyboard 1 Movement Vi Keybinds 0 Fullscreen 1 Font 24/Smallcaps Map View 183x50 Tactical HUD 1 Map Filters NONE Filters NONE Steam 1 RUN: 6908a691-6e73-4c0c-b036-d010891e5078